bitfinex-derivatives/quotes_BTCF0:USTF0_20250517
["timestamp","ask_amount","ask_price","bid_price","bid_amount"]
[1747448348462,0.79043616,103000.0,102990.0,0.96372248]
[1747448348657,0.38634216,103000.0,102990.0,0.88592248]
[1747448348857,0.58043616,103000.0,102990.0,1.21592248]
[1747448349863,0.58043616,103000.0,102990.0,0.9491129]
[1747448351057,0.58043616,103000.0,102990.0,0.5883129]
[1747448351258,0.58043616,103000.0,102990.0,0.3561129]
[1747448352570,0.58043616,103000.0,102990.0,0.42872242]
[1747448352770,0.58043616,103000.0,102990.0,0.46132242]
[1747448353468,0.62131844,103000.0,102990.0,0.46132242]
[1747448353670,0.62131844,103000.0,102990.0,0.3887129]
[1747448354472,0.62131844,103000.0,102990.0,0.58291296]
[1747448355775,0.62131844,103000.0,102990.0,0.77291296]
[1747448355964,0.62131844,103000.0,102990.0,1.20632248]
[1747448356367,0.62131844,103000.0,102990.0,1.13371296]
[1747448356563,0.36482444,103000.0,102990.0,1.20632248]
[1747448357479,0.32394216,103000.0,102990.0,1.20632248]
[1747448358775,0.32394216,103000.0,102990.0,1.62322248]
[1747448359573,0.32394216,103000.0,102990.0,1.55061296]
[1747448359772,0.32394216,103000.0,102990.0,1.62322248]
[1747448360667,0.29244216,103000.0,102990.0,1.62322248]
[1747448360868,0.29244216,103000.0,102990.0,1.960592]
[1747448361175,0.11244216,103000.0,102990.0,1.960592]
[1747448361378,0.11244216,103000.0,102990.0,1.88798248]
[1747448362476,0.107,103000.0,102990.0,1.88798248]
[1747448363379,0.11244216,103000.0,102990.0,1.88798248]
[1747448364372,0.11244216,103000.0,102990.0,1.960592]
[1747448365373,0.10996913,103010.0,103000.0,0.194094]
[1747448365580,0.10996913,103010.0,103000.0,1.26060358]
[1747448366374,0.28996913,103010.0,103000.0,1.26060358]
[1747448366572,0.26311712,103010.0,103000.0,1.26060358]
[1747448367282,0.25911712,103010.0,103000.0,1.26160358]
[1747448367480,0.25911712,103010.0,103000.0,1.26360358]
[1747448367885,0.29191712,103010.0,103000.0,1.16099406]
[1747448368078,0.29191712,103010.0,103000.0,1.23360358]
[1747448368275,0.29046,103010.0,103000.0,1.23360358]
[1747448368682,0.29046,103010.0,103000.0,1.23560358]
[1747448368981,0.29046,103010.0,103000.0,1.23360358]
[1747448369181,0.29046,103010.0,103000.0,1.23460358]
[1747448369882,0.29046,103010.0,103000.0,1.24450952]
[1747448370981,0.29046,103010.0,103000.0,1.66140952]
[1747448372080,0.27619095,103010.0,103000.0,1.66140952]
[1747448372473,0.02570794,103020.0,103010.0,0.1940752]
[1747448372674,0.02570794,103020.0,103010.0,1.49678478]
[1747448373178,0.20570794,103020.0,103010.0,1.13598478]
[1747448373479,0.23640794,103020.0,103010.0,1.49678478]
[1747448373888,0.23640794,103020.0,103010.0,1.91368478]
[1747448374082,0.43046424,103020.0,103010.0,1.91368478]
[1747448374385,0.43046424,103020.0,103010.0,1.84107526]
[1747448374683,0.2751501,103020.0,103010.0,1.84107526]
[1747448376187,0.4692064,103020.0,103010.0,1.57747526]
[1747448376385,0.44449846,103020.0,103010.0,1.84207526]
[1747448377471,0.44449846,103020.0,103010.0,1.91468478]
[1747448377675,0.44449846,103020.0,103010.0,1.55388478]
[1747448378172,0.25044216,103020.0,103010.0,1.48127526]
[1747448378372,0.25044216,103020.0,103010.0,1.3090752]
[1747448378583,0.44449846,103020.0,103010.0,1.6698752]
[1747448379981,0.44449846,103020.0,103010.0,0.8921752]
[1747448381379,0.44449846,103020.0,103010.0,0.6821752]
[1747448381584,0.44449846,103020.0,103010.0,0.4185752]
[1747448381887,0.25044216,103020.0,103010.0,0.71118472]
[1747448382276,0.25044216,103020.0,103010.0,1.33558472]
[1747448382483,0.25044216,103020.0,103010.0,0.97478472]
[1747448383279,0.44449846,103020.0,103010.0,0.9021752]
[1747448383582,0.44449846,103020.0,103010.0,0.2585752]
[1747448383583,0.51710798,103020.0,103010.0,0.2585752]
[1747448383785,0.44449846,103020.0,103010.0,0.4385752]
[1747448384588,0.44449846,103020.0,103010.0,0.4365752]
[1747448384990,0.44449846,103020.0,103010.0,0.4355752]
[1747448385391,0.44449846,103020.0,103010.0,0.62977526]
[1747448386391,0.51710798,103020.0,103010.0,0.62977526]
[1747448386590,0.87790798,103020.0,103010.0,0.62977526]
[1747448387596,0.91790798,103020.0,103010.0,0.4050752]
[1747448387892,1.51074798,103020.0,103010.0,0.3740752]
[1747448388894,1.51074798,103020.0,103010.0,0.38419089]
[1747448389189,1.9324295,103020.0,103010.0,0.19011569]
[1747448389392,1.9324295,103020.0,103010.0,0.01011569]
[1747448389692,1.9334295,103020.0,103010.0,0.01011569]
[1747448390989,0.18359129,103010.0,103000.0,0.7080251]
[1747448391175,0.89000081,103010.0,103000.0,0.7080251]
[1747448391375,0.81739129,103010.0,103000.0,0.7405251]
[1747448391575,0.89000081,103010.0,103000.0,0.7405251]
[1747448391778,0.89000081,103010.0,103000.0,0.3236251]
[1747448393088,0.81739129,103010.0,103000.0,0.3236251]
[1747448393479,0.89000081,103010.0,103000.0,0.3236251]
[1747448394098,0.89100081,103010.0,103000.0,0.3236251]
[1747448394297,0.89300081,103010.0,103000.0,0.3236251]
[1747448394789,0.89200081,103010.0,103000.0,0.3236251]
[1747448394989,0.81939129,103010.0,103000.0,0.2751022]
[1747448395183,1.08199129,103010.0,103000.0,0.66151172]
[1747448395490,0.6338,103010.0,103000.0,0.66151172]
[1747448395791,0.5418,103010.0,103000.0,0.85571178]
[1747448395985,0.5438,103010.0,103000.0,0.85571178]
[1747448396698,0.7378752,103010.0,103000.0,0.85571178]
[1747448397192,0.3770752,103010.0,103000.0,1.21651178]
[1747448397393,0.3740752,103010.0,103000.0,0.85571178]
[1747448397992,0.3740752,103010.0,103000.0,0.85671178]
[1747448398179,0.3740752,103010.0,103000.0,0.78610226]
[1747448398385,0.4046752,103010.0,103000.0,0.78610226]
[1747448398588,0.18,103010.0,103000.0,1.21951178]
[1747448398786,0.3740752,103010.0,103000.0,0.85871178]
[1747448399001,0.3740752,103010.0,103000.0,1.21951178]
[1747448399496,0.3740752,103010.0,103000.0,0.85871178]
[1747448400093,0.3740752,103010.0,103000.0,1.21951178]
[1747448400394,0.4046752,103010.0,103000.0,0.78410226]
[1747448400895,0.4046752,103010.0,103000.0,1.14390226]
[1747448401093,0.4046752,103010.0,103000.0,0.78310226]
[1747448401293,0.4046752,103010.0,103000.0,0.78510226]
[1747448401596,0.4046752,103010.0,103000.0,1.14690226]
[1747448401787,0.4046752,103010.0,103000.0,0.78610226]
[1747448402092,0.4046752,103010.0,103000.0,1.14690226]
[1747448402282,0.4046752,103010.0,103000.0,0.78610226]
[1747448402999,0.4046752,103010.0,103000.0,0.85871178]
[1747448403789,0.4046752,103010.0,103000.0,0.78610226]
[1747448405999,0.18,103010.0,103000.0,1.21951178]
[1747448406185,0.14351626,103010.0,103000.0,1.21951178]
[1747448406492,0.14351626,103010.0,103000.0,1.63641178]
[1747448407483,0.14351626,103010.0,103000.0,1.63625588]
[1747448408794,0.14351626,103010.0,103000.0,1.89837588]
[1747448410888,0.001,103020.0,103010.0,0.1940752]
[1747448411089,0.02470918,103030.0,103020.0,0.1940563]
[1747448411397,0.02470918,103030.0,103020.0,1.24656588]
[1747448412095,0.20470918,103030.0,103020.0,1.24656588]
[1747448413299,0.20670918,103030.0,103020.0,1.24656588]
[1747448414203,0.20470918,103030.0,103020.0,1.3191754]
[1747448414606,0.20470918,103030.0,103020.0,1.24656588]
[1747448414806,0.20470918,103030.0,103020.0,1.3191754]
[1747448415404,0.20470918,103030.0,103020.0,1.33396]
[1747448416108,0.18,103030.0,103020.0,1.33396]
[1747448416406,0.18,103030.0,103020.0,1.26135048]
[1747448417005,0.18,103030.0,103020.0,1.52379048]
[1747448417304,0.2133,103030.0,103020.0,1.52379048]
[1747448419321,0.21874216,103030.0,103020.0,1.52379048]
[1747448424810,0.21874216,103030.0,103020.0,1.94069048]
[1747448426919,0.21874216,103030.0,103020.0,2.20209048]
[1747448429412,0.21874216,103030.0,103020.0,2.2747]
[1747448430318,0.21874216,103030.0,103020.0,2.20209048]
[1747448430720,0.21874216,103030.0,103020.0,2.12948096]
[1747448430920,0.24884216,103030.0,103020.0,1.67825048]
[1747448431223,0.47577966,103030.0,103020.0,1.0358563]
[1747448431523,0.47577966,103030.0,103020.0,1.23005636]
[1747448431725,0.47577966,103030.0,103020.0,1.19995636]
[1747448432217,0.47577966,103030.0,103020.0,1.56075636]
[1747448432418,0.47577966,103030.0,103020.0,1.82207636]
[1747448432620,0.47577966,103030.0,103020.0,1.46127636]
[1747448432822,0.47577966,103030.0,103020.0,1.82207636]
[1747448433823,0.47577966,103030.0,103020.0,1.89468588]
[1747448435319,0.47577966,103030.0,103020.0,1.63336588]
[1747448435520,0.47577966,103030.0,103020.0,1.89468588]
[1747448436325,0.50048884,103030.0,103020.0,1.89468588]
[1747448436725,0.50048884,103030.0,103020.0,1.47778588]
[1747448436930,0.30645134,103030.0,103020.0,1.47778588]
[1747448437425,0.27355134,103030.0,103020.0,1.47778588]
[1747448441133,0.21015134,103030.0,103020.0,1.47778588]
[1747448441324,0.24125134,103030.0,103020.0,1.47778588]
[1747448442726,0.24125134,103030.0,103020.0,1.89468588]
[1747448442923,0.24125134,103030.0,103020.0,1.53388588]
[1747448443233,0.24125134,103030.0,103020.0,1.89468588]
[1747448443834,0.24125134,103030.0,103020.0,1.63336588]
[1747448444133,0.24125134,103030.0,103020.0,1.89468588]
[1747448444334,0.24854216,103030.0,103020.0,1.89468588]
[1747448445034,0.25459216,103030.0,103020.0,1.89468588]
[1747448445735,0.25459216,103030.0,103020.0,1.82207636]
[1747448445927,0.25459216,103030.0,103020.0,1.89468588]
[1747448447233,0.25459216,103030.0,103020.0,1.82207636]
[1747448447437,0.25459216,103030.0,103020.0,1.89468588]
[1747448448935,0.24915,103030.0,103020.0,1.89468588]
[1747448449731,0.27385918,103030.0,103020.0,1.89468588]
[1747448451433,0.24185918,103030.0,103020.0,1.89468588]
[1747448452348,0.06185918,103030.0,103020.0,1.89468588]
[1747448453340,0.06185918,103030.0,103020.0,1.88410427]
[1747448453740,0.03715,103030.0,103020.0,1.88410427]
[1747448454736,0.03715,103030.0,103020.0,1.51469521]
[1747448455645,0.03715,103030.0,103020.0,1.46720427]
[1747448457743,0.03715,103030.0,103020.0,1.20588427]
[1747448457938,0.03715,103030.0,103020.0,1.46720427]
[1747448458240,0.03715,103030.0,103020.0,1.51469521]
[1747448460039,0.03088647,103050.0,103040.0,0.1940187]
[1747448460242,0.03088647,103050.0,103040.0,2.07496064]
[1747448460432,0.03088647,103050.0,103040.0,2.13876064]
[1747448460941,0.06048513,103060.0,103050.0,0.1939998]
[1747448461243,0.0653,103070.0,103060.0,0.193981]
[1747448461539,0.0653,103070.0,103060.0,1.19868644]
[1747448461739,0.0653,103070.0,103060.0,1.27137704]
[1747448462340,0.2453,103070.0,103060.0,1.27137704]
[1747448462948,0.2453,103070.0,103060.0,1.19906619]
[1747448463637,0.18,103070.0,103060.0,1.4655771]
[1747448464643,0.18,103070.0,103060.0,1.39326625]
[1747448464843,0.2116,103070.0,103060.0,1.39326625]
[1747448465047,0.21704216,103070.0,103060.0,1.39326625]
[1747448465340,0.24904216,103070.0,103060.0,1.39326625]
[1747448466339,0.24904216,103070.0,103060.0,1.4655771]
[1747448467641,0.24904216,103070.0,103060.0,1.2054971]
[1747448467838,0.24904216,103070.0,103060.0,1.03242625]
[1747448468148,0.24904216,103070.0,103060.0,1.2054971]
[1747448468333,0.18544216,103070.0,103060.0,1.4655371]
[1747448468736,0.18544216,103070.0,103060.0,1.2054971]
[1747448469031,0.21814216,103070.0,103060.0,1.4655371]
[1747448470445,0.24924216,103070.0,103060.0,1.4655371]
[1747448471045,0.24924216,103070.0,103060.0,1.2054971]
[1747448471548,0.44320436,103070.0,103060.0,1.35154056]
[1747448471737,0.24924216,103070.0,103060.0,1.09154056]
[1747448472036,0.24924216,103070.0,103060.0,1.38434056]
[1747448472232,0.24924216,103070.0,103060.0,1.45665141]
[1747448474448,0.24924216,103070.0,103060.0,1.46624635]
[1747448474845,0.18544216,103070.0,103060.0,1.46624635]
[1747448475235,0.18544216,103070.0,103060.0,1.88314635]
[1747448476040,0.18544216,103070.0,103060.0,2.14238635]
[1747448476750,0.18544216,103070.0,103060.0,2.0700755]
[1747448476943,0.18544216,103070.0,103060.0,2.14238635]
[1747448478550,0.002,103080.0,103070.0,0.1939622]
[1747448478836,0.002,103080.0,103070.0,1.68307311]
[1747448479248,0.182,103080.0,103070.0,1.68383261]
[1747448479655,0.183,103080.0,103070.0,1.68383261]
[1747448479855,0.185,103080.0,103070.0,1.68383261]
[1747448480240,0.185,103080.0,103070.0,1.75614346]
[1747448480437,0.19044216,103080.0,103070.0,1.75614346]
[1747448481146,0.19044216,103080.0,103070.0,1.68383261]
[1747448485752,0.19044216,103080.0,103070.0,1.61152176]
[1747448485956,0.19044216,103080.0,103070.0,2.20259261]
[1747448486158,0.19044216,103080.0,103070.0,1.68383261]
[1747448486352,0.19044216,103080.0,103070.0,2.20255261]
[1747448492351,0.19044216,103080.0,103070.0,1.68383261]
[1747448492552,0.19044216,103080.0,103070.0,2.20087261]
[1747448494065,0.19044216,103080.0,103070.0,2.20163211]
[1747448495158,0.19044216,103080.0,103070.0,1.4180812]
[1747448495468,0.25194216,103080.0,103070.0,1.4655242]
[1747448495760,0.25194216,103080.0,103070.0,1.7240842]
[1747448495956,0.25194216,103080.0,103070.0,1.6766412]
[1747448496264,0.25194216,103080.0,103070.0,1.7240842]
[1747448496456,0.19044216,103080.0,103070.0,1.7240842]
[1747448497562,0.19044216,103080.0,103070.0,1.91828426]
[1747448498462,0.19044216,103080.0,103070.0,1.96572726]
[1747448498765,0.19044216,103080.0,103070.0,1.91828426]
[1747448499863,0.19044216,103080.0,103070.0,2.17644426]
[1747448500054,0.19044216,103080.0,103070.0,2.12900126]
[1747448500254,0.19044216,103080.0,103070.0,2.17644426]
[1747448500868,0.19044216,103080.0,103070.0,1.91828426]
[1747448501066,0.19044216,103080.0,103070.0,0.9375812]
[1747448501067,0.21044216,103080.0,103070.0,0.9375812]
[1747448501264,0.25254216,103080.0,103070.0,1.2435842]
[1747448502051,0.25254216,103080.0,103070.0,1.46968426]
[1747448502354,0.25254216,103080.0,103070.0,1.50088426]
[1747448502955,0.25254216,103080.0,103070.0,1.45344126]
[1747448503156,0.25254216,103080.0,103070.0,1.50088426]
[1747448504464,0.19044216,103080.0,103070.0,1.50088426]
[1747448505565,0.22094216,103080.0,103070.0,1.50088426]
[1747448507763,0.25274216,103080.0,103070.0,1.50088426]
[1747448508773,0.25274216,103080.0,103070.0,1.91778426]
[1747448510969,0.27125892,103080.0,103070.0,1.91778426]
[1747448511473,0.47227998,103100.0,103090.0,0.1939247]
[1747448511474,0.13293728,103100.0,103090.0,0.1939247]
[1747448511663,0.22583728,103100.0,103090.0,1.75648726]
[1747448511864,0.22583728,103100.0,103090.0,1.77314426]
[1747448512064,0.40583728,103100.0,103090.0,1.82058726]
[1747448513370,0.40583728,103100.0,103090.0,1.77314426]
[1747448513571,0.40583728,103100.0,103090.0,1.82058726]
[1747448514169,0.40583728,103100.0,103090.0,1.77314426]
[1747448514374,0.40583728,103100.0,103090.0,1.82058726]
[1747448514575,0.40583728,103100.0,103090.0,1.77314426]
[1747448514773,0.40583728,103100.0,103090.0,1.82058726]
[1747448516063,0.37497602,103100.0,103090.0,1.82058726]
[1747448518976,0.37497602,103100.0,103090.0,1.85308726]
[1747448521178,0.37497602,103100.0,103090.0,1.82058726]
[1747448522983,0.37497602,103100.0,103090.0,1.77314426]
[1747448523182,0.37497602,103100.0,103090.0,1.82058726]
[1747448523479,0.37497602,103100.0,103090.0,1.77314426]
[1747448523783,0.37497602,103100.0,103090.0,1.82058726]
[1747448523983,0.39966771,103100.0,103090.0,1.82058726]
[1747448525179,0.40510987,103100.0,103090.0,1.82058726]
[1747448527182,0.40510987,103100.0,103090.0,1.82134676]
[1747448527581,0.40510987,103100.0,103090.0,1.3211437]
[1747448528085,0.38041818,103100.0,103090.0,1.3211437]
[1747448530090,0.57432398,103100.0,103090.0,1.3211437]
[1747448530387,0.38041818,103100.0,103090.0,1.3211437]
[1747448531686,0.40510987,103100.0,103090.0,1.3211437]
[1747448533889,0.40510987,103100.0,103090.0,0.9603437]
[1747448534187,0.59901567,103100.0,103090.0,0.9603437]
[1747448535186,0.57432398,103100.0,103090.0,0.9603437]
[1747448538688,0.38041818,103100.0,103090.0,0.9603437]
[1747448538879,0.57432398,103100.0,103090.0,0.9603437]
[1747448539186,0.38041818,103100.0,103090.0,0.9603437]
[1747448539393,0.57432398,103100.0,103090.0,1.15454376]
[1747448540092,0.40510987,103100.0,103090.0,1.15454376]
[1747448540595,0.59901567,103100.0,103090.0,1.15454376]
[1747448541095,0.40510987,103100.0,103090.0,1.15454376]
[1747448541893,0.40510987,103100.0,103090.0,1.20198676]
[1747448542692,0.40510987,103100.0,103090.0,1.15454376]
[1747448542884,0.59901567,103100.0,103090.0,1.15454376]
[1747448543579,0.40510987,103100.0,103090.0,1.15454376]
[1747448546286,0.59901567,103100.0,103090.0,0.84118676]
[1747448546489,0.40510987,103100.0,103090.0,0.84118676]
[1747448547093,0.40510987,103100.0,103090.0,1.20198676]
[1747448547286,0.40510987,103100.0,103090.0,1.15454376]
[1747448549390,0.59901567,103100.0,103090.0,0.79374376]
[1747448549597,0.40510987,103100.0,103090.0,0.82424376]
[1747448549799,0.40510987,103100.0,103090.0,1.18504376]
[1747448550096,0.64645867,103100.0,103090.0,0.79374376]
[1747448550596,0.45255287,103100.0,103090.0,0.79374376]
[1747448550896,0.59901567,103100.0,103090.0,0.82424376]
[1747448554702,0.56711567,103100.0,103090.0,0.82424376]
[1747448555004,0.53621567,103100.0,103090.0,1.18504376]
[1747448555188,0.53621567,103100.0,103090.0,0.82424376]
[1747448555389,0.53621567,103100.0,103090.0,1.18504376]
[1747448557294,0.56931567,103100.0,103090.0,1.18504376]
[1747448558005,0.61675867,103100.0,103090.0,1.15454376]
[1747448558299,0.60141567,103100.0,103090.0,0.96454376]
[1747448558498,0.64885867,103100.0,103090.0,0.99664376]
[1747448558898,0.60141567,103100.0,103090.0,0.99664376]
[1747448559300,0.60141567,103100.0,103090.0,0.8024437]
[1747448559604,0.60141567,103100.0,103090.0,0.99664376]
[1747448559791,0.60141567,103100.0,103090.0,0.63584376]
[1747448561604,0.31220987,103100.0,103090.0,0.68328676]
[1747448561795,0.31220987,103100.0,103090.0,1.23408676]
[1747448564512,0.31220987,103100.0,103090.0,1.18664376]
[1747448564707,0.31220987,103100.0,103090.0,1.23408676]
[1747448565506,0.31220987,103100.0,103090.0,1.18664376]
[1747448565708,0.31220987,103100.0,103090.0,1.23408676]
[1747448567307,0.1938914,103110.0,103100.0,0.3393084]
[1747448567511,0.2423648,103110.0,103100.0,1.32930846]
[1747448567909,0.2423648,103110.0,103100.0,1.33006796]
[1747448568111,0.4223648,103110.0,103100.0,1.33006796]
[1747448568806,0.4233648,103110.0,103100.0,1.33006796]
[1747448569012,0.42142522,103110.0,103100.0,1.33006796]
[1747448569509,0.37295182,103110.0,103100.0,1.33006796]
[1747448569817,0.37839398,103110.0,103100.0,1.33006796]
[1747448570512,0.38841358,103110.0,103100.0,1.33006796]
[1747448570710,0.19646176,103110.0,103100.0,1.33006796]
[1747448572015,0.39299807,103120.0,103110.0,0.193887]
[1747448572213,0.5935071,103120.0,103110.0,0.842287]
[1747448572414,0.6419787,103120.0,103110.0,0.8430465]
[1747448573311,0.8249787,103120.0,103110.0,0.8430465]
[1747448573514,0.8249787,103120.0,103110.0,0.84498608]
[1747448573721,0.8394361,103120.0,103110.0,0.84498608]
[1747448574817,0.86377614,103120.0,103110.0,0.84498608]
[1747448575015,0.60853614,103120.0,103110.0,0.84498608]
[1747448575320,0.91401614,103120.0,103110.0,0.84498608]
[1747448576012,0.91401614,103120.0,103110.0,0.99039358]
[1747448576013,0.0959146,103120.0,103110.0,0.99039358]
[1747448576213,0.2759146,103120.0,103110.0,0.99039358]
[1747448577119,0.5182689,103120.0,103110.0,0.99039358]
[1747448577517,0.5667405,103120.0,103110.0,0.99022919]
[1747448578010,0.58116445,103120.0,103110.0,0.99022919]
[1747448578316,0.58116445,103120.0,103110.0,0.94175799]
[1747448580212,0.62860745,103120.0,103110.0,0.94175799]
[1747448583724,0.58116445,103120.0,103110.0,0.94175799]
[1747448584418,0.58116445,103120.0,103110.0,0.75175799]
[1747448585014,0.58660661,103120.0,103110.0,0.75175799]
[1747448585510,0.58660661,103120.0,103110.0,0.81175799]
[1747448586415,0.58660661,103120.0,103110.0,1.00595805]
[1747448586724,0.58660661,103120.0,103110.0,0.94595805]
[1747448589927,0.53813501,103120.0,103110.0,0.96595805]
[1747448590118,0.54815459,103120.0,103110.0,0.96595805]
[1747448593226,0.54815459,103120.0,103110.0,0.96671755]
[1747448594629,0.50071159,103120.0,103110.0,0.96671755]
[1747448595029,0.54815459,103120.0,103110.0,0.96671755]
[1747448597128,0.49968299,103120.0,103110.0,0.96671755]
[1747448597325,0.49968299,103120.0,103110.0,1.16671755]
[1747448598417,0.45223999,103120.0,103110.0,1.16671755]
[1747448598627,0.52386693,103120.0,103110.0,1.16671755]
[1747448601519,0.2897991,103120.0,103110.0,1.21518875]
[1747448601724,0.30402081,103120.0,103110.0,1.21518875]
[1747448601924,0.25657781,103120.0,103110.0,1.21518875]
[1747448602121,0.43657781,103120.0,103110.0,1.21518875]
[1747448602326,0.48946297,103120.0,103110.0,1.21518875]
[1747448604034,0.44201997,103120.0,103110.0,1.21518875]
[1747448604235,0.48946297,103120.0,103110.0,1.21518875]
[1747448604435,0.047443,103120.0,103110.0,1.21518875]
[1747448604634,0.2413275,103120.0,103110.0,1.21518875]
[1747448605237,0.43570781,103120.0,103110.0,1.21518875]
[1747448605431,0.44114997,103120.0,103110.0,1.21518875]
[1747448607545,0.2413275,103120.0,103110.0,1.21518875]
[1747448608038,0.1938845,103120.0,103110.0,1.21518875]
[1747448608239,0.43601316,103120.0,103110.0,1.21518875]
[1747448608438,0.44145532,103120.0,103110.0,1.21518875]
[1747448608940,0.39401232,103120.0,103110.0,1.21518875]
[1747448609142,0.44145532,103120.0,103110.0,1.21518875]
[1747448610256,0.3031064,103130.0,103120.0,0.290787]
[1747448610454,0.3705494,103130.0,103120.0,0.7541465]
[1747448611059,0.5505494,103130.0,103120.0,0.7541465]
[1747448611354,0.792884,103130.0,103120.0,0.7541465]
[1747448612041,0.80725392,103130.0,103120.0,0.7541465]
[1747448612352,0.81025392,103130.0,103120.0,0.7541465]
[1747448612755,0.80025392,103130.0,103120.0,0.7541465]
[1747448613458,0.087443,103130.0,103120.0,0.8026134]
[1747448613658,0.11125517,103130.0,103120.0,0.8026134]
[1747448614157,0.29125517,103130.0,103120.0,0.8026134]
[1747448614554,0.29669733,103130.0,103120.0,0.8026134]
[1747448615157,0.49903193,103130.0,103120.0,0.8026134]
[1747448615350,0.20925433,103130.0,103120.0,1.36425646]
[1747448615551,0.14069107,103150.0,103140.0,0.1938306]
[1747448615746,0.28705987,103150.0,103140.0,0.74883066]
[1747448615951,0.28705987,103150.0,103140.0,0.74959016]
[1747448616153,0.46705987,103150.0,103140.0,0.74959016]
[1747448616354,0.51450287,103150.0,103140.0,0.74959016]
[1747448616958,0.53233259,103150.0,103140.0,0.74959016]
[1747448617258,0.53233259,103150.0,103140.0,0.85959016]
[1747448617956,0.56323259,103150.0,103140.0,0.85959016]
[1747448618762,0.83372666,103160.0,103140.0,0.9119082]
[1747448618968,0.2404953,103150.0,103140.0,0.9918144]
[1747448619262,0.25664593,103150.0,103140.0,0.99067515]
[1747448619455,0.20996243,103150.0,103140.0,0.99067515]
[1747448619760,0.2554666,103150.0,103140.0,0.99067515]
[1747448619962,0.2080236,103150.0,103140.0,0.99067515]
[1747448620164,0.4354666,103150.0,103140.0,0.99067515]
[1747448620367,0.19615063,103150.0,103140.0,0.99067515]
[1747448620556,0.19615063,103150.0,103140.0,1.25067515]
[1747448620751,0.19615063,103150.0,103140.0,1.08067515]
[1747448620952,0.19615063,103150.0,103140.0,1.44147515]
[1747448621157,0.181519,103150.0,103140.0,1.44147515]
[1747448621865,0.19153626,103150.0,103140.0,1.44147515]
[1747448622474,0.23897926,103150.0,103140.0,1.44147515]
[1747448622658,0.19153626,103150.0,103140.0,1.44147515]
[1747448622857,0.23897926,103150.0,103140.0,1.44147515]
[1747448623565,0.43279106,103150.0,103140.0,1.44147515]
[1747448623766,0.60279106,103150.0,103140.0,1.24147515]
[1747448623969,0.63656506,103150.0,103140.0,1.24147515]
[1747448624268,0.85400806,103150.0,103140.0,0.96791749]
[1747448624465,0.90641317,103160.0,103140.0,0.96791749]
[1747448624665,0.19345085,103140.0,103130.0,0.6842587]
[1747448624866,0.67061535,103140.0,103130.0,0.73311945]
[1747448625175,0.45387235,103140.0,103130.0,0.73311945]
[1747448625361,0.45387235,103140.0,103130.0,0.7477477]
[1747448625562,0.3761091,103140.0,103130.0,0.94194776]
[1747448625863,0.4235521,103140.0,103130.0,0.94194776]
[1747448626264,0.3761091,103140.0,103130.0,0.94194776]
[1747448626570,0.1822785,103140.0,103130.0,0.94194776]
[1747448627159,0.1832785,103140.0,103130.0,1.26939076]
[1747448628866,0.1832785,103140.0,103130.0,1.52263076]
[1747448629069,0.1822785,103140.0,103130.0,1.52263076]
[1747448629365,0.0958945,103160.0,103150.0,0.2422446]
[1747448629567,0.38546415,103160.0,103150.0,0.6153231]
[1747448629873,0.3866034,103160.0,103150.0,0.6791231]
[1747448630263,0.5666034,103160.0,103150.0,0.69375135]
[1747448630561,0.5666034,103160.0,103150.0,0.69569018]
[1747448630762,0.5281519,103160.0,103150.0,0.69569018]
[1747448631068,0.55991898,103160.0,103150.0,0.69569018]
[1747448632272,0.25921008,103160.0,103150.0,0.88989024]
[1747448632677,0.42916748,103160.0,103150.0,0.88989024]
[1747448633167,0.42916748,103160.0,103150.0,0.82806624]
[1747448633368,0.47661048,103160.0,103150.0,0.90701784]
[1747448633569,0.42916748,103160.0,103150.0,0.90701784]
[1747448633773,0.47661048,103160.0,103150.0,0.90701784]
[1747448634273,0.22115721,103160.0,103150.0,0.94446084]
[1747448634577,0.22115721,103160.0,103150.0,1.19446084]
[1747448634776,0.2036073,103160.0,103150.0,1.19446084]
[1747448635275,0.2036073,103160.0,103150.0,1.14701784]
[1747448635477,0.22115721,103160.0,103150.0,1.14701784]
[1747448635776,0.23449424,103160.0,103150.0,1.14701784]
[1747448636976,0.52573024,103160.0,103150.0,0.92701784]
[1747448637280,0.047443,103160.0,103150.0,1.02391894]
[1747448637467,0.251236,103160.0,103150.0,1.02391894]
[1747448637667,0.241236,103160.0,103150.0,1.02391894]
[1747448637875,0.271236,103160.0,103150.0,0.99391894]
[1747448638171,0.46882225,103160.0,103150.0,0.99391894]
[1747448638380,0.42137925,103160.0,103150.0,0.99391894]
[1747448639270,0.46882225,103160.0,103150.0,0.99391894]
[1747448639984,0.49960451,103160.0,103150.0,0.99391894]
[1747448640372,0.81960451,103160.0,103150.0,0.79971888]
[1747448641677,0.77216151,103160.0,103150.0,0.79971888]
[1747448641878,0.81960451,103160.0,103150.0,0.79971888]
[1747448642376,0.81960451,103160.0,103150.0,0.99391894]
[1747448642575,0.06446704,103170.0,103150.0,1.04237034]
[1747448642884,0.25824134,103170.0,103160.0,0.617193]
[1747448643080,0.25824134,103170.0,103160.0,0.62833225]
[1747448643380,0.25824134,103170.0,103160.0,0.6429605]
[1747448643381,0.43824134,103170.0,103160.0,0.6429605]
[1747448643576,0.45542271,103170.0,103160.0,0.6429605]
[1747448643971,0.44484543,103170.0,103160.0,0.6429605]
[1747448644282,0.45484543,103170.0,103160.0,0.6429605]
[1747448644578,0.50228843,103170.0,103160.0,0.83716056]
[1747448644778,0.50228843,103170.0,103160.0,0.86986056]
[1747448644983,0.51673013,103170.0,103160.0,0.86986056]
[1747448645475,0.46928713,103170.0,103160.0,0.86986056]
[1747448645679,0.21706523,103170.0,103160.0,0.91730356]
[1747448646280,0.21706523,103170.0,103160.0,0.86986056]
[1747448646978,0.41083953,103170.0,103160.0,0.86986056]
[1747448647278,0.37230773,103180.0,103160.0,1.00519776]
[1747448647474,0.2588173,103170.0,103160.0,0.72269776]
[1747448647788,0.5988173,103170.0,103160.0,0.67424986]
[1747448648172,0.78425946,103170.0,103160.0,0.67424986]
[1747448648981,0.78425946,103170.0,103160.0,1.03504986]
[1747448648982,0.42665946,103170.0,103160.0,1.03504986]
[1747448649181,0.23288516,103170.0,103160.0,1.03504986]
[1747448649375,0.18544216,103170.0,103160.0,1.03504986]
[1747448649682,0.21025074,103170.0,103160.0,1.03504986]
[1747448649981,0.22745311,103170.0,103160.0,1.03504986]
[1747448650975,0.22745311,103170.0,103160.0,1.21504986]
[1747448651386,0.047443,103180.0,103170.0,0.3390777]
[1747448651579,0.067443,103180.0,103170.0,0.77391695]
[1747448651979,0.067443,103180.0,103170.0,0.7885452]
[1747448652180,0.4896503,103180.0,103170.0,0.7885452]
[1747448652379,0.8496503,103180.0,103170.0,0.7885452]
[1747448652585,0.8970933,103180.0,103170.0,0.7885452]
[1747448653086,0.96032174,103180.0,103170.0,0.7885452]
[1747448653386,0.98876464,103180.0,103170.0,0.7401029]
[1747448653585,1.00621277,103180.0,103170.0,0.7401029]
[1747448653788,1.02621277,103180.0,103170.0,0.7401029]
[1747448654484,0.58921833,103180.0,103170.0,0.4071675]
[1747448654674,0.36330607,103180.0,103170.0,0.5703418]
[1747448654881,0.8039775,103180.0,103170.0,0.5703418]